bitfinex/quotes_ETHUSD_20251201
["timestamp","ask_amount","ask_price","bid_price","bid_amount"]
[1764601022739,0.1804,2825.5,2824.6,0.4766]
[1764601022942,0.4538,2825.4,2824.5,3.54144718]
[1764601023184,0.4538,2825.4,2824.5,7.08189681]
[1764601023387,0.4538,2825.4,2824.5,11.33053612]
[1764601023593,0.4538,2825.4,2824.6,0.72559411]
[1764601023800,3.751,2826.5,2824.6,0.72559411]
[1764601023801,0.1813,2825.7,2824.6,1.20219411]
[1764601024103,0.4538,2826.2,2825.4,10.61796558]
[1764601024380,0.4538,2826.5,2825.5,0.72559411]
[1764601024876,0.2765,2825.6,2824.8,3.54007363]
[1764601025079,0.2765,2825.6,2824.9,0.72559411]
[1764601025265,0.4502,2825.5,2824.9,0.72559411]
[1764601025769,0.2765,2825.6,2824.9,1.86017561]
[1764601025770,0.1813,2825.6,2824.9,1.86017561]
[1764601026092,0.1813,2825.9,2825.0,14.635892]
[1764601026396,0.4538,2825.8,2825.0,14.159292]
[1764601026596,0.1813,2825.9,2825.1,0.1855]
[1764601027043,0.1813,2825.9,2825.1,1.80599676]
[1764601027380,0.4538,2826.4,2825.2,9.37649634]
[1764601027680,0.453,2826.4,2825.3,0.72559411]
[1764601027880,0.002,2826.6,2825.4,0.882104]
[1764601028052,0.002,2826.6,2825.8,14.15528344]
[1764601028251,0.002,2826.6,2825.9,2.21368187]
[1764601028776,0.002,2826.6,2825.8,7.07764172]
[1764601028982,0.6783,2825.9,2825.8,4.26441497]
[1764601029278,0.002,2826.6,2825.8,10.61646258]
[1764601029481,0.1805,2825.9,2825.8,3.53882086]
[1764601030174,0.4538,2826.5,2825.6,0.72559411]
[1764601030879,0.4538,2826.5,2825.6,2.21396549]
[1764601031243,0.002,2826.6,2825.7,0.4766]
[1764601031445,0.002,2826.6,2825.9,0.72559411]
[1764601032174,0.002,2826.6,2826.0,14.15428164]
[1764601032346,0.002,2826.6,2826.1,0.1855]
[1764601032546,0.002,2826.6,2826.5,1.20919411]
[1764601032768,0.002,2826.6,2826.2,0.71544257]
[1764601033878,0.4558,2826.6,2826.1,0.72559411]
[1764601034186,0.4558,2826.6,2826.2,7.07664]
[1764601034748,0.4558,2826.6,2826.2,10.61496]
[1764601035149,0.0952,2826.3,2825.7,3.5389461]
[1764601035349,0.4502,2826.5,2825.7,10.6168383]
[1764601035772,0.1805,2825.8,2825.7,3.5389461]
[1764601035973,0.73,2825.8,2825.5,0.001]
[1764601036178,0.4978,2825.6,2825.5,0.001]
[1764601036354,0.15159793,2825.7,2825.5,0.001]
[1764601036556,0.4538,2825.6,2825.5,0.001]
[1764601037852,1.45906428,2825.6,2825.5,0.001]
[1764601038204,7.4838972,2825.5,2825.2,0.001]
[1764601038348,0.50540193,2825.3,2825.2,0.001]
[1764601038549,0.95920193,2825.3,2825.2,0.001]
[1764601039581,0.55369793,2825.3,2825.2,0.001]
[1764601040782,4.18834506,2825.3,2825.2,0.001]
[1764601041186,4.59384906,2825.3,2825.2,0.001]
[1764601041349,0.954504,2825.3,2825.2,0.001]
[1764601041852,4.49395113,2825.3,2825.2,0.001]
[1764601042162,4.59384906,2825.3,2825.2,0.001]
[1764601042361,5.31944317,2825.3,2825.2,0.001]
[1764601042565,5.77882808,2825.3,2825.2,0.001]
[1764601044361,5.87872602,2825.3,2825.2,0.001]
[1764601044801,1.20818078,2825.3,2825.2,0.001]
[1764601044998,0.549,2825.3,2825.2,0.001]
[1764601046161,4.91393917,2825.3,2825.2,0.001]
[1764601046493,1.37449204,2825.3,2825.2,0.001]
[1764601046788,1.60449204,2825.3,2825.2,0.001]
[1764601047094,0.64529793,2825.3,2825.2,0.001]
[1764601047259,1.08675396,2825.3,2825.2,0.001]
[1764601047763,0.0952,2825.3,2825.2,0.001]
[1764601048073,4.08484713,2825.3,2825.2,0.001]
[1764601048283,4.18474506,2825.3,2825.2,0.001]
[1764601048453,1.05080193,2825.3,2825.2,0.001]
[1764601048654,0.23,2825.7,2825.2,0.001]
[1764601048887,0.28039793,2825.8,2825.2,0.001]
[1764601049075,0.6997,2825.7,2825.2,0.001]
[1764601049281,0.0795,2825.3,2825.2,0.001]
[1764601050291,0.002,2825.5,2825.2,0.4546]
[1764601050585,0.0012,2825.5,2825.3,3.53944713]
[1764601050763,0.0012,2825.5,2825.3,7.53709426]
[1764601050969,0.0012,2825.5,2825.3,8.66355876]
[1764601051183,0.0012,2825.5,2825.4,0.4536]
[1764601051675,0.0012,2825.5,2825.3,8.20535876]
[1764601052258,0.0012,2825.5,2825.2,0.001]
[1764601052778,0.0795,2825.3,2825.2,0.001]
[1764601053306,0.5453,2825.3,2825.2,0.001]
[1764601053599,0.74509587,2825.3,2825.2,0.001]
[1764601054462,4.284543,2825.3,2825.2,0.001]
[1764601054670,5.06705062,2825.3,2825.2,0.001]
[1764601054888,6.19814873,2825.3,2825.2,0.001]
[1764601055093,5.99835286,2825.3,2825.2,0.001]
[1764601055280,6.19814873,2825.3,2825.2,0.001]
[1764601055906,6.19814873,2825.3,2824.9,0.001]
[1764601055907,0.50540193,2825.0,2824.9,0.001]
[1764601056112,0.405504,2824.9,2824.6,0.001]
[1764601056406,4.44549306,2824.7,2824.6,0.001]
[1764601056607,4.79709692,2824.7,2824.6,0.001]
[1764601056911,5.12609306,2824.7,2824.6,0.001]
[1764601057107,6.67372069,2824.7,2824.6,0.001]
[1764601057592,2.48212587,2824.7,2824.6,0.001]
[1764601057810,6.47392482,2824.7,2824.6,0.001]
[1764601058167,1.84762187,2824.7,2824.6,0.001]
[1764601058407,5.12609306,2824.7,2824.6,0.001]
[1764601058605,5.22599099,2824.7,2824.6,0.001]
[1764601059811,3.53997534,2824.9,2824.6,0.001]
[1764601059812,0.0858,2824.9,2824.6,0.001]
[1764601060103,0.229,2824.8,2824.6,0.001]
[1764601060273,0.0753,2824.7,2824.6,0.001]
[1764601060465,1.05060193,2824.7,2824.6,0.001]
[1764601060665,4.59080088,2824.7,2824.6,0.001]
[1764601060891,5.43536863,2824.7,2824.6,0.001]
[1764601061480,4.96546863,2824.7,2824.6,0.001]
[1764601061670,5.43536863,2824.7,2824.6,0.001]
[1764601062292,5.53526657,2824.7,2824.6,0.001]
[1764601062814,5.43536863,2824.7,2824.6,0.001]
[1764601062974,6.16096274,2824.7,2824.6,0.001]
[1764601064369,2.62076379,2824.7,2824.6,0.001]
[1764601064705,5.31639499,2824.7,2824.6,0.001]
[1764601066000,0.09989793,2824.7,2824.6,0.001]
[1764601066189,0.0793,2824.7,2824.6,0.001]
[1764601066389,0.65990386,2824.7,2824.6,0.001]
[1764601066566,1.27970193,2824.7,2824.6,0.001]
[1764601066769,6.46259493,2824.7,2824.6,0.001]
[1764601067370,5.99659493,2824.7,2824.6,0.001]
[1764601067571,6.46259493,2824.7,2824.6,0.001]
[1764601067788,5.59109093,2824.7,2824.6,0.001]
[1764601067991,5.99659493,2824.7,2824.6,0.001]
[1764601068305,6.56249287,2824.7,2824.6,0.001]
[1764601069688,6.46259493,2824.7,2824.6,0.001]
[1764601072805,5.99659493,2824.7,2824.6,0.001]
[1764601073015,6.46259493,2824.7,2824.6,0.001]
[1764601073310,1.13109811,2824.6,2824.3,0.001]
[1764601073484,12.3886063,2824.6,2824.3,0.001]
[1764601073686,0.0048,2824.3,2824.0,0.001]
[1764601073887,0.16179793,2824.1,2824.0,0.001]
[1764601074304,0.32889793,2824.1,2824.0,0.001]
[1764601074609,0.229,2824.1,2824.0,0.4567]
[1764601074797,0.19979587,2824.3,2824.0,0.4567]
[1764601075105,7.08089926,2824.5,2824.0,0.4567]
[1764601075106,0.09989793,2824.5,2824.1,0.1949]
[1764601075312,0.09989793,2824.5,2824.2,0.4557]
[1764601075488,1.05449204,2824.6,2824.2,0.9059]
[1764601075676,1.86799227,2824.6,2824.2,0.9059]
[1764601076182,1.53909434,2824.6,2824.5,0.4557]
[1764601076489,0.81350023,2824.6,2824.5,0.4557]
[1764601076690,0.95459411,2824.7,2824.5,0.4557]
[1764601076986,0.95459411,2824.7,2824.5,0.9059]
[1764601077187,4.49480027,2824.7,2824.5,0.4557]
[1764601077388,4.49480027,2824.7,2824.2,0.4502]
[1764601078185,0.19979587,2824.6,2824.1,0.1949]
[1764601078506,0.19979587,2824.6,2824.1,3.73584593]
[1764601078674,0.19979587,2824.6,2824.2,0.4502]
[1764601078880,3.54044963,2824.5,2824.1,0.1949]
[1764601079077,3.74016927,2824.6,2824.1,0.6451]
[1764601079306,4.56029885,2824.6,2824.1,0.6451]
[1764601080312,4.56029885,2824.6,2824.2,0.4502]
[1764601080817,0.002,2824.9,2824.5,0.4557]
[1764601081021,0.002,2824.9,2824.8,0.4557]
[1764601081526,0.002,2824.9,2824.8,0.9059]
[1764601081883,0.002,2824.9,2824.8,0.4557]
[1764601082211,0.002,2824.9,2824.8,0.9059]
[1764601082781,0.002,2824.9,2824.8,4.44597363]
[1764601082982,0.002,2824.9,2824.8,0.4557]
[1764601083286,0.002,2824.9,2824.8,0.9059]
[1764601083482,0.002,2824.9,2824.5,0.4502]
[1764601083693,0.0878,2824.9,2824.1,4.18601914]
[1764601083897,0.18769793,2824.9,2824.1,4.18601914]
[1764601084415,0.18769793,2824.9,2824.1,4.18604711]
[1764601084584,0.0878,2824.9,2824.1,0.6451]
[1764601084785,0.09989793,2824.6,2824.1,0.1949]
[1764601085122,0.09989793,2824.6,2824.2,0.4502]
[1764601085307,0.72559411,2824.8,2824.5,0.4557]
[1764601085508,0.002,2824.9,2824.6,0.4557]
[1764601085726,0.002,2824.9,2824.8,0.4557]
[1764601086020,0.002,2824.9,2824.2,0.4502]
[1764601086230,3.54196888,2824.9,2824.2,0.4502]
[1764601086383,3.54196888,2824.9,2824.2,0.86890502]
[1764601086887,3.54196888,2824.9,2824.3,0.4502]
[1764601087226,0.002,2824.9,2824.8,0.4557]
[1764601088114,0.002,2824.9,2824.8,0.9059]
[1764601088621,0.6329,2824.9,2824.0,0.001]
[1764601088786,0.09989793,2824.2,2824.0,0.001]
[1764601089114,0.82549204,2824.5,2824.1,0.1949]
[1764601089319,0.79061406,2824.4,2824.1,0.6506]
[1764601089483,0.79061406,2824.4,2824.1,1.1008]
[1764601090316,0.79061406,2824.4,2824.1,0.6506]
[1764601090525,0.09989793,2824.1,2824.0,0.001]
[1764601091017,5.41694507,2824.1,2824.0,0.001]
[1764601091315,6.31272293,2824.1,2824.0,0.001]
[1764601093307,10.06372293,2824.1,2824.0,0.001]
[1764601093515,9.96382499,2824.1,2824.0,0.001]
[1764601093716,9.96382499,2824.1,2823.9,0.001]
[1764601093717,4.88209811,2824.0,2823.9,0.001]
[1764601093950,1.97500197,2824.0,2823.9,0.001]
[1764601094105,1.97500197,2824.0,2823.5,0.001]
[1764601094106,4.45308434,2824.0,2823.5,0.001]
[1764601094306,1.98489398,2823.6,2823.5,0.001]
[1764601094744,2.06139398,2823.6,2823.5,0.001]
[1764601095247,5.6029721,2823.6,2823.5,0.001]
[1764601095566,6.66922302,2823.6,2823.5,0.001]
[1764601096538,6.66842302,2823.6,2823.5,0.001]
[1764601098849,0.405504,2823.2,2822.7,0.001]
[1764601099161,10.99861414,2823.1,2822.7,0.001]
[1764601099364,6.12946875,2823.1,2822.7,0.001]
[1764601099569,6.61696875,2823.1,2822.7,0.001]
[1764601101335,5.15216871,2823.1,2822.7,0.001]
[1764601101530,4.5398073,2823.1,2822.7,0.001]
[1764601101980,5.26540141,2823.1,2822.7,0.001]
[1764601102965,4.77320141,2823.1,2822.7,0.001]
[1764601103532,5.31780141,2823.1,2822.7,0.001]
[1764601104536,4.67330348,2823.1,2822.7,0.001]
[1764601104767,1.23099604,2823.1,2823.0,0.4548]
[1764601104933,1.23099604,2823.1,2823.0,0.001]
[1764601104934,4.67330348,2823.1,2823.0,0.001]
[1764601105136,5.02490734,2823.1,2823.0,0.001]
[1764601105377,0.72559411,2823.1,2823.0,0.4548]
[1764601105542,7.08265456,2823.8,2823.0,0.9167]
[1764601105753,1.45190957,2823.7,2823.1,0.1934]
[1764601105956,7.08265456,2823.8,2823.2,0.4619]
[1764601105957,3.54132728,2823.8,2823.2,0.4619]
[1764601106254,7.43425842,2823.8,2823.2,0.4619]
[1764601106486,7.08265456,2823.8,2823.2,0.4619]
[1764601106837,0.35160386,2823.6,2823.2,0.4619]
[1764601107039,7.43425842,2823.8,2823.2,0.4619]
[1764601107373,4.36681932,2823.8,2823.7,0.4538]
[1764601107574,3.64122521,2823.8,2823.2,0.4619]
[1764601107772,3.64122521,2823.8,2823.2,4.00394591]
[1764601107959,7.18255249,2823.8,2823.2,0.4619]
[1764601108168,0.09989793,2823.5,2823.1,0.1934]
[1764601108340,0.09989793,2823.6,2823.2,0.4907]
[1764601108543,0.19979587,2823.9,2823.7,0.4808]
[1764601109188,3.54082572,2824.2,2823.1,7.27777725]
[1764601109189,0.92538998,2824.1,2823.8,0.9715]
[1764601109339,0.09989793,2823.8,2823.2,0.4907]
[1764601109543,7.0829054,2823.7,2823.2,0.4907]
[1764601109869,3.5414527,2823.7,2823.2,0.4907]
[1764601110069,3.64129153,2823.8,2823.6,0.4808]
[1764601110272,7.18268513,2823.8,2823.6,0.4808]
[1764601110639,7.88112613,2823.8,2823.2,0.4907]
[1764601110872,8.23272999,2823.8,2823.2,0.4907]
[1764601111079,7.98102406,2823.8,2823.2,0.4907]
[1764601111245,0.35160386,2823.6,2823.2,0.4907]
[1764601111438,3.54180208,2823.5,2823.2,0.4907]
[1764601112273,0.35160386,2823.6,2823.4,0.4808]
[1764601112470,3.89318599,2823.6,2823.4,0.4808]
[1764601112974,0.35160386,2823.5,2823.4,0.4808]
[1764601113166,0.35160386,2823.4,2823.1,0.1934]
[1764601113469,0.35160386,2823.4,2823.1,0.6841]
[1764601113672,3.893528,2823.4,2823.1,0.6841]
[1764601113885,0.72559411,2823.3,2823.0,0.001]
[1764601114062,1.22473665,2823.2,2823.0,0.001]
[1764601114264,1.13513665,2823.2,2823.0,0.001]
[1764601114481,0.4595,2823.7,2823.0,0.001]
[1764601114482,0.002,2824.9,2823.1,1.7907]
[1764601114701,0.55546099,2825.9,2823.1,1.7907]
[1764601114702,0.22624739,2826.9,2825.9,14.712501]
[1764601114996,0.22624739,2826.9,2826.4,14.596901]
[1764601115196,0.22624739,2826.9,2826.1,14.596901]
[1764601115498,0.41354739,2826.9,2826.1,14.596901]
[1764601115668,0.41354739,2826.9,2826.1,18.13527568]
[1764601115869,0.41354739,2826.9,2826.2,14.596901]
[1764601117198,0.73983151,2826.9,2826.2,14.596901]
[1764601117405,0.22624739,2826.9,2826.2,14.596901]
[1764601117577,0.22624739,2826.9,2826.3,3.53819481]
[1764601117578,0.41354739,2826.9,2826.3,3.53819481]
[1764601117783,0.41354739,2826.9,2826.4,14.596901]
[1764601117977,0.41354739,2826.9,2826.2,14.596901]
[1764601118180,0.41354739,2826.9,2826.1,18.13533838]
[1764601118181,3.95099688,2826.9,2826.1,18.13533838]
[1764601118390,0.39509969,2826.8,2826.2,14.596901]
[1764601119391,3.95100559,2826.9,2826.2,14.596901]
[1764601119590,4.41170559,2826.9,2825.8,7.80323583]
[1764601119790,4.41170559,2826.9,2825.9,14.596901]
[1764601119987,1.18509411,2826.8,2825.9,14.596901]
[1764601120200,0.405504,2826.6,2825.3,14.596901]
[1764601120402,0.405504,2826.6,2825.2,0.1156]
[1764601120403,0.405504,2826.6,2825.2,14.596901]
[1764601120624,0.405504,2826.4,2825.1,14.596901]
[1764601120975,0.405504,2826.2,2825.1,14.596901]
[1764601121301,0.405504,2826.2,2824.9,14.596901]
[1764601121465,0.405504,2826.0,2824.9,14.596901]
[1764601121668,0.72559411,2825.9,2825.0,14.596901]
[1764601121921,0.91289411,2825.9,2825.0,14.596901]
[1764601122078,0.1873,2825.9,2825.0,14.596901]
[1764601122304,0.91289411,2825.9,2825.1,14.596901]
[1764601122500,0.44514917,2825.8,2825.1,14.596901]
[1764601122800,0.44514917,2825.8,2825.1,14.712501]
[1764601123009,0.72559411,2826.1,2825.2,14.596901]
[1764601123304,0.1873,2825.9,2825.2,14.596901]
[1764601123719,1.18509411,2826.1,2825.4,14.596901]
[1764601124085,4.72357471,2826.1,2825.4,14.596901]
[1764601124282,0.6715,2825.5,2824.9,14.596901]
[1764601125509,0.4595,2825.4,2824.9,14.596901]
[1764601125808,0.72559411,2825.3,2824.9,14.596901]
[1764601126006,1.26519208,2825.3,2824.9,14.596901]
[1764601126607,0.53959797,2825.3,2824.9,14.596901]
[1764601127980,1.26519208,2825.3,2824.9,14.596901]
[1764601128180,0.72559411,2825.3,2824.9,14.596901]
[1764601129110,0.72559411,2825.4,2824.9,14.596901]
[1764601129489,4.45210838,2825.5,2824.9,3.53994321]
[1764601129694,0.44521084,2825.4,2824.8,3.6846234]
[1764601129893,0.72559411,2825.5,2825.4,0.1156]
[1764601130095,4.64832634,2826.6,2825.4,0.1156]
[1764601130293,0.4595,2826.4,2825.5,14.596901]
[1764601130492,0.4595,2826.4,2825.2,14.596901]
[1764601131311,0.4595,2826.4,2825.0,14.596901]
[1764601131609,0.405504,2826.3,2824.9,14.596901]
[1764601131814,0.405504,2826.3,2824.9,14.712501]
[1764601132011,0.405504,2826.0,2825.1,14.596901]
[1764601132215,0.405504,2826.0,2825.0,14.596901]
[1764601132513,0.405504,2825.8,2824.9,14.596901]
[1764601132885,0.405504,2825.6,2824.9,14.596901]
[1764601133289,0.458,2825.6,2824.9,14.596901]
[1764601133715,0.72559411,2825.4,2824.1,0.116]
[1764601133917,7.08014726,2824.8,2824.2,14.596901]
[1764601134097,7.08014726,2824.8,2824.1,14.596901]
[1764601134989,7.53814726,2824.8,2824.1,14.596901]
[1764601135188,0.458,2824.7,2824.1,14.596901]
[1764601135421,0.75381473,2824.6,2824.1,14.596901]
[1764601135901,1.21181473,2824.6,2824.1,14.596901]
[1764601136296,3.72249293,2824.9,2824.1,14.596901]
[1764601136498,1.18359411,2824.8,2824.1,14.596901]
[1764601136992,0.72559411,2824.8,2824.2,14.596901]
[1764601137215,0.72559411,2824.8,2824.1,14.596901]
[1764601137397,1.52440211,2824.8,2824.1,14.596901]
[1764601137724,1.52440211,2824.8,2824.6,0.001]
[1764601138196,1.13109811,2825.1,2824.6,0.001]
[1764601138537,0.1825,2825.2,2824.6,0.001]
[1764601140298,3.5396977,2825.1,2824.6,0.001]
[1764601140760,0.458,2825.5,2824.6,0.001]
[1764601140930,0.72559411,2825.7,2824.7,14.596901]
[1764601141133,0.72559411,2825.7,2824.6,0.001]
[1764601141134,0.6799,2824.7,2824.6,0.001]
[1764601141633,1.1379,2824.7,2824.6,0.001]
[1764601142220,4.67809895,2824.7,2824.6,0.001]
[1764601142644,4.67729895,2824.7,2824.6,0.001]
[1764601142844,6.22463143,2824.7,2824.6,0.001]
[1764601145647,6.57627216,2824.7,2824.6,0.001]
[1764601149451,6.57627216,2824.7,2824.6,0.001]
[1764601151056,6.98177616,2824.7,2824.6,0.001]
[1764601152589,1.54733248,2824.7,2824.6,0.001]
[1764601152864,5.32109099,2824.7,2824.6,0.001]
[1764601153096,5.72659499,2824.7,2824.6,0.001]
[1764601153596,1.13109811,2824.6,2824.3,0.001]
[1764601153760,0.09989793,2823.8,2823.5,0.1168]
[1764601155658,3.64124758,2823.8,2823.5,0.1168]
[1764601155864,0.09989793,2823.8,2823.5,0.1168]
[1764601156075,3.64126222,2823.8,2823.5,0.1168]
[1764601156993,3.54136429,2823.8,2823.5,0.1168]
[1764601157501,0.35164073,2823.7,2823.3,0.1168]
[1764601157792,7.80774707,2824.0,2823.3,0.1168]
[1764601158550,8.26574707,2824.0,2823.3,0.1168]
[1764601158781,8.6173878,2824.0,2823.3,0.1168]
[1764601159085,6.49613523,2824.0,2823.3,3.6587541]
[1764601159259,8.6173878,2824.0,2823.3,0.1168]
[1764601159461,8.26574707,2824.0,2823.3,0.1168]
[1764601159657,3.5414527,2823.7,2823.3,0.1168]
[1764601159877,0.72559411,2823.6,2823.3,0.1168]
[1764601160058,0.82549204,2823.6,2823.3,0.1168]
[1764601160248,0.09989793,2823.6,2823.3,3.65872666]
[1764601160572,0.09989793,2823.6,2823.3,0.1168]
[1764601162078,3.6415035,2823.6,2823.3,0.1168]
[1764601164302,7.18310907,2823.6,2823.3,0.1168]
[1764601164504,7.18310907,2823.6,2823.1,0.1168]
[1764601165493,0.59589793,2823.2,2823.0,0.001]
[1764601165693,0.59509793,2823.2,2823.0,0.001]
[1764601165909,3.54220537,2823.1,2823.0,0.001]
[1764601166388,3.64199242,2823.2,2823.0,0.001]
[1764601167911,4.36038714,2823.2,2823.0,0.001]
[1764601168817,0.83484073,2823.1,2823.0,0.001]
[1764601169040,0.6733,2822.8,2822.4,0.001]
[1764601169179,0.98860193,2822.5,2822.4,0.001]
[1764601169379,2.05149739,2822.5,2822.4,0.001]
[1764601169632,0.09989793,2821.8,2821.3,0.1206]
[1764601169778,0.09989793,2821.8,2818.0,19.50899364]
[1764601169779,0.6136,2821.4,2821.0,0.1206]
[1764601169979,3.54453348,2821.3,2821.0,0.1206]
[1764601170177,3.54453348,2821.3,2820.5,0.1206]
[1764601170178,4.00093348,2821.3,2820.8,0.1206]
[1764601170487,3.89585661,2821.5,2820.8,0.1206]
[1764601170696,0.72559411,2821.4,2820.8,0.1206]
[1764601170906,1.55262415,2821.4,2820.4,0.1206]
[1764601171226,0.09989793,2821.1,2820.4,0.1206]
[1764601171399,0.72559411,2821.5,2820.5,0.1206]
[1764601171603,0.09989793,2821.3,2820.5,0.1206]
[1764601172031,0.09989793,2821.3,2820.6,7.09068992]
[1764601172217,0.09989793,2821.3,2820.7,0.72112899]
[1764601172615,0.09989793,2821.3,2820.8,0.001]
[1764601172923,0.535904,2822.0,2821.2,0.1206]
[1764601173135,0.72559411,2821.8,2821.2,0.1206]
[1764601173633,0.1901,2821.9,2820.8,0.001]
[1764601173792,0.09989793,2821.8,2820.9,0.1206]
[1764601173984,9.97765404,2822.5,2820.9,0.1206]
[1764601173985,0.6465,2822.8,2821.0,0.405504]
[1764601174188,8.91475858,2822.3,2821.0,0.1206]
[1764601174409,0.19979587,2821.8,2821.0,0.1206]
[1764601175883,0.19979587,2821.8,2820.9,7.08992829]
[1764601176120,0.19979587,2821.8,2820.8,0.72659411]
[1764601176121,3.74374119,2821.8,2820.8,0.72659411]
[1764601176330,3.74374119,2821.8,2820.9,0.90230327]
[1764601176833,0.19979587,2821.8,2820.9,0.90230327]
[1764601176998,0.19979587,2821.8,2821.0,0.1206]
[1764601178131,0.19979587,2822.0,2821.1,7.08943318]
[1764601178345,0.19979587,2822.0,2821.2,0.1206]
[1764601178553,0.1901,2821.9,2821.2,0.1206]
[1764601178706,0.19979587,2822.0,2821.2,0.1206]
[1764601180201,0.1901,2821.9,2820.8,0.1216]
[1764601180415,0.74639793,2821.9,2820.8,0.1216]
[1764601180634,0.1901,2821.9,2820.8,0.1216]
[1764601181605,0.6465,2821.9,2820.8,0.1216]
[1764601183462,0.1901,2821.9,2820.8,0.1216]
[1764601183805,0.09989793,2822.1,2821.8,0.1206]
[1764601184054,0.09989793,2822.2,2821.8,0.1206]
[1764601184277,0.6733,2821.9,2820.9,0.1206]
[1764601186640,0.19979587,2822.0,2820.9,0.1206]
[1764601188748,0.19879689,2822.0,2820.9,0.1206]
[1764601189341,0.1901,2821.9,2820.9,0.1206]
[1764601191942,0.1901,2821.9,2820.9,0.1216]
[1764601192582,0.19979587,2821.7,2820.9,0.001]
[1764601193078,0.4517,2821.6,2820.9,0.001]
[1764601194485,0.19979587,2821.7,2820.9,0.001]
[1764601194672,0.65149587,2821.7,2820.9,0.001]
[1764601194869,0.1901,2821.9,2820.9,0.1216]
[1764601195204,0.55159793,2821.8,2820.9,0.1216]
[1764601195683,0.09989793,2821.8,2820.9,0.1216]
[1764601195884,0.28999793,2821.9,2820.9,0.1216]
[1764601198404,0.4517,2822.6,2821.8,0.1206]
[1764601198569,0.4517,2822.6,2821.9,0.1206]
[1764601199072,0.4537,2822.4,2821.9,0.1206]
[1764601199275,0.002,2822.4,2821.9,0.1206]
[1764601199779,0.002,2822.4,2821.9,0.2412]
[1764601200523,0.002,2822.4,2822.3,0.1206]
[1764601200814,0.002,2823.0,2822.3,0.2392]
[1764601201013,0.002,2823.0,2822.6,0.1186]
[1764601201171,0.002,2823.0,2821.8,3.54374177]
[1764601201172,0.4771,2822.4,2820.9,0.4081007]
[1764601201377,0.002,2823.0,2822.6,0.1186]
[1764601201580,0.002,2823.0,2821.5,0.72559411]
[1764601201581,0.6493,2822.9,2821.5,0.72559411]
[1764601201880,0.1976,2822.9,2821.7,0.405504]
[1764601202202,0.002,2823.0,2822.6,0.1186]
[1764601202623,0.9308,2822.7,2821.7,0.1186]
[1764601202921,0.9308,2822.7,2821.1,0.1186]
[1764601203074,0.9308,2822.7,2822.6,0.1186]
[1764601203075,0.002,2822.7,2822.6,0.1186]
[1764601203279,0.002,2822.7,2821.4,0.72559411]
[1764601203512,0.002,2822.7,2821.1,7.20803318]
[1764601203513,0.002,2822.7,2822.6,0.1186]
[1764601203712,0.002,2822.7,2822.6,0.2372]
[1764601204477,0.002,2822.7,2822.1,0.1186]
[1764601205239,0.4771,2822.2,2820.9,0.1196]
[1764601205532,0.72759411,2822.7,2820.9,9.03435858]
[1764601205533,0.002,2822.7,2820.9,9.03435858]
[1764601205681,0.4517,2822.6,2821.0,1.02213586]
[1764601205882,0.4517,2822.6,2821.1,0.1186]
[1764601206105,0.4517,2822.5,2821.1,0.1186]
[1764601206282,0.002,2822.7,2821.3,8.91475858]
[1764601206482,0.002,2822.7,2822.6,0.1186]
[1764601206690,0.002,2822.7,2821.9,0.405504]
[1764601206983,0.002,2822.7,2822.6,0.1186]
[1764601207181,0.002,2822.7,2821.9,0.1186]
[1764601207399,0.002,2822.7,2821.5,0.405504]
[1764601207988,0.002,2822.7,2821.7,0.405504]
[1764601208409,0.4537,2822.7,2820.9,0.001]
[1764601208720,0.4537,2822.7,2821.0,0.1186]
[1764601209198,0.4537,2822.7,2821.1,0.405504]
[1764601209394,0.002,2822.7,2821.1,0.405504]
[1764601209628,0.002,2822.7,2821.0,0.1186]
[1764601209629,0.4537,2822.7,2821.3,0.405504]
[1764601210099,0.4537,2822.7,2821.5,0.405504]
[1764601210295,0.4537,2822.7,2821.4,0.1186]
[1764601211085,0.4537,2822.7,2821.0,0.1186]
[1764601211288,0.4537,2822.7,2821.1,0.1186]
[1764601211587,0.405504,2822.6,2820.9,0.001]
[1764601211782,0.4517,2822.5,2820.9,0.001]
[1764601212005,9.52239671,2822.4,2820.9,0.001]
[1764601212206,1.72300378,2822.3,2820.9,0.001]
[1764601212404,2.17470378,2822.3,2820.9,0.001]
[1764601212605,0.99740967,2822.3,2821.0,0.1186]
[1764601212818,0.4517,2822.2,2820.9,0.001]
[1764601213026,0.4517,2822.2,2821.0,0.1186]
[1764601214219,0.4517,2822.2,2820.9,0.001]
[1764601214426,0.405504,2822.1,2820.9,0.001]
[1764601214606,1.13109811,2822.1,2820.9,0.001]
[1764601214822,0.4517,2822.6,2821.0,9.52239671]
[1764601215130,0.4517,2822.6,2821.0,0.405504]
[1764601215325,0.4517,2822.6,2820.9,0.001]
[1764601215525,0.002,2822.7,2821.2,0.405504]
[1764601215697,0.002,2822.7,2821.4,0.405504]
[1764601216102,0.002,2822.7,2821.6,0.405504]
[1764601216520,0.002,2822.7,2821.7,0.1186]
[1764601216904,0.002,2822.7,2821.8,0.405504]
[1764601217412,0.002,2822.7,2821.9,0.1186]
[1764601217615,0.002,2822.7,2821.5,0.1186]
[1764601217808,0.002,2822.7,2821.6,0.524104]
[1764601218022,0.002,2822.7,2821.6,0.405504]
[1764601218331,0.002,2822.7,2821.8,0.405504]
[1764601218814,0.002,2822.7,2821.9,0.1186]
[1764601219142,0.002,2822.7,2822.0,0.405504]
[1764601219442,0.4537,2822.7,2821.2,0.3862546]
[1764601219688,0.4537,2822.7,2821.0,0.1186]
[1764601219933,0.002,2822.7,2821.4,0.405504]
[1764601220324,0.4517,2822.6,2821.2,0.405504]
[1764601220633,0.4517,2822.6,2821.4,0.1186]